[Event "Titled Tuesday Blitz May 23 Early 2023"]
[White "LeoLV10"]
[Black "Colas, Joshua"]
[BlackFideId "2044447"]
[WhiteElo "2380"]
[BlackElo "2347"]
[Result "1-0"]
[Round "04"]
[TimeControl "180+2"]
[Date "2023.05.23"]
[WhiteClock "0:01:19"]
[BlackClock "0:00:00"]

1. e4 {[%clk 0:03:00]}  g6 {[%clk 0:02:50]} 2. d4 {[%clk 0:02:59]}  Bg7 {[%clk 0:02:50]} 3. f4 {[%clk 0:02:59]}  c5 {[%clk 0:02:48]} 4. c3 {[%clk 0:02:58]}  cxd4 {[%clk 0:02:48]} 5. cxd4 {[%clk 0:02:59]}  d5 {[%clk 0:02:47]} 6. e5 {[%clk 0:02:59]}  h5 {[%clk 0:02:47]} 7. Nc3 {[%clk 0:03:00]}  Nh6 {[%clk 0:02:47]} 8. Nf3 {[%clk 0:02:56]}  O-O {[%clk 0:02:47]} 9. Bd3 {[%clk 0:02:52]}  Bf5 {[%clk 0:02:44]} 10. Be2 {[%clk 0:02:51]}  Bg4 {[%clk 0:02:43]} 11. Be3 {[%clk 0:02:48]}  e6 {[%clk 0:02:39]} 12. Bf2 {[%clk 0:02:40]}  Nc6 {[%clk 0:02:39]} 13. O-O {[%clk 0:02:32]}  a6 {[%clk 0:02:33]} 14. a3 {[%clk 0:02:31]}  Nf5 {[%clk 0:02:22]} 15. b4 {[%clk 0:02:25]}  Rc8 {[%clk 0:01:54]} 16. Na4 {[%clk 0:02:14]}  Bh6 {[%clk 0:01:53]} 17. Qd2 {[%clk 0:01:55]}  f6 {[%clk 0:01:51]} 18. Nc5 {[%clk 0:01:53]}  Qe7 {[%clk 0:01:51]} 19. exf6 {[%clk 0:01:48]}  Rxf6 {[%clk 0:01:50]} 20. Rae1 {[%clk 0:01:46]}  Rcf8 {[%clk 0:01:13]} 21. Ng5 {[%clk 0:01:46]}  Bxe2 {[%clk 0:01:08]} 22. Rxe2 {[%clk 0:01:46]}  Nfxd4 {[%clk 0:01:00]} 23. Bxd4 {[%clk 0:01:41]}  Nxd4 {[%clk 0:01:00]} 24. Qxd4 {[%clk 0:01:35]}  Bxg5 {[%clk 0:01:00]} 25. g3 {[%clk 0:01:34]}  Bh6 {[%clk 0:00:18]} 26. Rfe1 {[%clk 0:01:33]}  Bg7 {[%clk 0:00:08]} 27. Nxe6 {[%clk 0:01:26]}  Rxe6 {[%clk 0:00:07]} 28. Qxd5 {[%clk 0:01:27]}  Kh7 {[%clk 0:00:02]} 29. Rxe6 {[%clk 0:01:26]}  Qc7 {[%clk 0:00:03]} 30. Re7 {[%clk 0:01:25]}  Qc3 {[%clk 0:00:00]} 31. Qe5 {[%clk 0:01:19]} 1-0


[Site "https://www.chess.com"]

[Event "Titled Tuesday Blitz May 23 Early 2023"]
[White "Gutkin, Ilya"]
[Black "Kiremitciyan, Ari"]
[WhiteFideId "16203470"]
[BlackFideId "6373445"]
[WhiteElo "2265"]
[BlackElo "2181"]
[Result "1-0"]
[Round "04"]
[TimeControl "180+2"]
[Date "2023.05.23"]
[WhiteClock "0:00:55"]
[BlackClock "0:00:00"]

1. Nf3 {[%clk 0:03:00]}  g6 {[%clk 0:02:59]} 2. d4 {[%clk 0:03:00]}  Bg7 {[%clk 0:02:59]} 3. e4 {[%clk 0:03:01]}  d6 {[%clk 0:02:58]} 4. c3 {[%clk 0:03:01]}  Nf6 {[%clk 0:02:58]} 5. Bd3 {[%clk 0:03:01]}  O-O {[%clk 0:02:58]} 6. h3 {[%clk 0:03:02]}  Nc6 {[%clk 0:02:58]} 7. d5 {[%clk 0:03:02]}  Nb8 {[%clk 0:02:55]} 8. O-O {[%clk 0:03:00]}  c6 {[%clk 0:02:54]} 9. c4 {[%clk 0:02:58]}  Nbd7 {[%clk 0:02:54]} 10. Nc3 {[%clk 0:02:58]}  a6 {[%clk 0:02:54]} 11. a4 {[%clk 0:02:57]}  Nc5 {[%clk 0:02:45]} 12. Bc2 {[%clk 0:02:56]}  a5 {[%clk 0:02:45]} 13. Be3 {[%clk 0:02:48]}  Nfd7 {[%clk 0:02:43]} 14. Qd2 {[%clk 0:02:42]}  Na6 {[%clk 0:02:15]} 15. Bh6 {[%clk 0:02:42]}  Nb4 {[%clk 0:02:15]} 16. Bxg7 {[%clk 0:02:39]}  Kxg7 {[%clk 0:02:16]} 17. Rac1 {[%clk 0:02:32]}  Nxc2 {[%clk 0:02:09]} 18. Rxc2 {[%clk 0:02:31]}  Nc5 {[%clk 0:02:10]} 19. Ne1 {[%clk 0:02:25]}  e5 {[%clk 0:01:54]} 20. Nd3 {[%clk 0:02:20]}  Nxd3 {[%clk 0:01:52]} 21. Qxd3 {[%clk 0:02:20]}  c5 {[%clk 0:01:42]} 22. Nb5 {[%clk 0:02:16]}  f5 {[%clk 0:01:38]} 23. f4 {[%clk 0:02:13]}  fxe4 {[%clk 0:01:37]} 24. Qc3 {[%clk 0:02:10]}  Re8 {[%clk 0:00:50]} 25. Re2 {[%clk 0:02:04]}  Kg8 {[%clk 0:00:31]} 26. Rxe4 {[%clk 0:02:03]}  Bf5 {[%clk 0:00:29]} 27. Re3 {[%clk 0:02:01]}  Qe7 {[%clk 0:00:12]} 28. fxe5 {[%clk 0:01:55]}  dxe5 {[%clk 0:00:13]} 29. Rfe1 {[%clk 0:01:54]}  Bd7 {[%clk 0:00:13]} 30. Rxe5 {[%clk 0:01:53]}  Qh4 {[%clk 0:00:07]} 31. Rxe8+ {[%clk 0:01:40]}  Rxe8 {[%clk 0:00:08]} 32. Rxe8+ {[%clk 0:01:39]}  Bxe8 {[%clk 0:00:09]} 33. Qe5 {[%clk 0:01:37]}  Bxb5 {[%clk 0:00:09]} 34. axb5 {[%clk 0:01:31]}  Qxc4 {[%clk 0:00:07]} 35. d6 {[%clk 0:01:31]}  Qc1+ {[%clk 0:00:04]} 36. Kh2 {[%clk 0:01:30]}  Qd2 {[%clk 0:00:04]} 37. Qxc5 {[%clk 0:01:09]}  Kf7 {[%clk 0:00:04]} 38. Qc7+ {[%clk 0:01:07]}  Ke6 {[%clk 0:00:04]} 39. Qe7+ {[%clk 0:01:01]}  Kf5 {[%clk 0:00:03]} 40. Qf7+ {[%clk 0:00:55]}  Ke5 {[%clk 0:00:00]} 41. d7 {[%clk 0:00:55]} 1-0


[Site "https://www.chess.com"]

[Event "Titled Tuesday Blitz May 23 Early 2023"]
[White "Bodnaruk, Anastasia"]
[Black "Dishman, Stephen"]
[WhiteFideId "4181751"]
[BlackFideId "403024"]
[WhiteElo "2304"]
[BlackElo "2204"]
[Result "1-0"]
[Round "04"]
[TimeControl "180+2"]
[Date "2023.05.23"]
[WhiteClock "0:00:05"]
[BlackClock "0:00:12"]

1. e4 {[%clk 0:03:00]}  d6 {[%clk 0:02:59]} 2. d4 {[%clk 0:03:00]}  Nf6 {[%clk 0:02:59]} 3. Nc3 {[%clk 0:03:00]}  e5 {[%clk 0:03:00]} 4. Nf3 {[%clk 0:02:56]}  Nbd7 {[%clk 0:03:00]} 5. Bc4 {[%clk 0:02:55]}  Be7 {[%clk 0:03:00]} 6. O-O {[%clk 0:02:53]}  O-O {[%clk 0:03:00]} 7. Re1 {[%clk 0:02:54]}  c6 {[%clk 0:02:56]} 8. a4 {[%clk 0:02:53]}  exd4 {[%clk 0:02:56]} 9. Nxd4 {[%clk 0:02:53]}  Ne5 {[%clk 0:02:56]} 10. Ba2 {[%clk 0:02:52]}  Re8 {[%clk 0:02:55]} 11. f4 {[%clk 0:02:45]}  Ng6 {[%clk 0:02:55]} 12. Kh1 {[%clk 0:02:31]}  Bf8 {[%clk 0:02:47]} 13. a5 {[%clk 0:02:24]}  Bg4 {[%clk 0:02:45]} 14. Qd3 {[%clk 0:02:17]}  Bd7 {[%clk 0:02:44]} 15. Bd2 {[%clk 0:02:14]}  Qc7 {[%clk 0:02:42]} 16. Qg3 {[%clk 0:01:58]}  d5 {[%clk 0:02:33]} 17. e5 {[%clk 0:01:55]}  Ng4 {[%clk 0:02:12]} 18. f5 {[%clk 0:01:35]}  N6xe5 {[%clk 0:02:05]} 19. Bf4 {[%clk 0:01:22]}  Bd6 {[%clk 0:02:04]} 20. Nf3 {[%clk 0:00:59]}  Nxf3 {[%clk 0:01:45]} 21. Bxd6 {[%clk 0:00:52]}  Qxd6 {[%clk 0:01:44]} 22. gxf3 {[%clk 0:00:40]}  Qxg3 {[%clk 0:01:41]} 23. hxg3 {[%clk 0:00:40]}  Ne5 {[%clk 0:01:33]} 24. f4 {[%clk 0:00:33]}  Ng4 {[%clk 0:01:33]} 25. Na4 {[%clk 0:00:22]}  Bxf5 {[%clk 0:01:30]} 26. Nc5 {[%clk 0:00:21]}  b6 {[%clk 0:01:28]} 27. Nb7 {[%clk 0:00:20]}  Bxc2 {[%clk 0:01:13]} 28. Nd6 {[%clk 0:00:17]}  Be4+ {[%clk 0:01:01]} 29. Kg1 {[%clk 0:00:09]}  Re6 {[%clk 0:00:53]} 30. Nxe4 {[%clk 0:00:04]}  Rxe4 {[%clk 0:00:53]} 31. Rxe4 {[%clk 0:00:03]}  dxe4 {[%clk 0:00:54]} 32. axb6 {[%clk 0:00:04]}  Kf8 {[%clk 0:00:46]} 33. Bc4 {[%clk 0:00:04]}  a5 {[%clk 0:00:42]} 34. b4 {[%clk 0:00:03]}  a4 {[%clk 0:00:41]} 35. b5 {[%clk 0:00:04]}  cxb5 {[%clk 0:00:37]} 36. Bd5 {[%clk 0:00:03]}  Rb8 {[%clk 0:00:35]} 37. b7 {[%clk 0:00:04]}  Nf6 {[%clk 0:00:34]} 38. Rc1 {[%clk 0:00:04]}  Nxd5 {[%clk 0:00:26]} 39. Rc8+ {[%clk 0:00:04]}  Ke7 {[%clk 0:00:23]} 40. Rxb8 {[%clk 0:00:04]}  Nb6 {[%clk 0:00:20]} 41. Re8+ {[%clk 0:00:04]}  Kxe8 {[%clk 0:00:19]} 42. b8=Q+ {[%clk 0:00:04]}  Ke7 {[%clk 0:00:18]} 43. Qxb6 {[%clk 0:00:05]}  a3 {[%clk 0:00:17]} 44. Qxb5 {[%clk 0:00:05]}  Ke6 {[%clk 0:00:16]} 45. Qa6+ {[%clk 0:00:05]}  Kf5 {[%clk 0:00:16]} 46. Qxa3 {[%clk 0:00:06]}  Kg4 {[%clk 0:00:16]} 47. Qe3 {[%clk 0:00:06]}  f5 {[%clk 0:00:16]} 48. Kg2 {[%clk 0:00:06]}  g5 {[%clk 0:00:14]} 49. fxg5 {[%clk 0:00:05]}  Kh5 {[%clk 0:00:14]} 50. Qf4 {[%clk 0:00:06]}  h6 {[%clk 0:00:14]} 51. gxh6 {[%clk 0:00:05]}  e3 {[%clk 0:00:14]} 52. h7 {[%clk 0:00:04]}  Kg6 {[%clk 0:00:12]} 53. h8=Q {[%clk 0:00:04]}  e2 {[%clk 0:00:13]} 54. Qhh6+ {[%clk 0:00:04]}  Kf7 {[%clk 0:00:13]} 55. Qc7+ {[%clk 0:00:04]}  Kg8 {[%clk 0:00:12]} 56. Qhg7# {[%clk 0:00:05]} 1-0


[Site "https://www.chess.com"]

[Event "Titled Tuesday Blitz May 23 Early 2023"]
[White "Thecourseoisildur"]
[Black "Avalos Parra, Joao"]
[BlackFideId "3402541"]
[WhiteElo "2573"]
[BlackElo "2173"]
[Result "1-0"]
[Round "04"]
[TimeControl "180+2"]
[Date "2023.05.23"]
[WhiteClock "0:00:54"]
[BlackClock "0:00:52"]

1. e4 {[%clk 0:02:44]}  e5 {[%clk 0:03:00]} 2. Nf3 {[%clk 0:02:44]}  Nc6 {[%clk 0:03:00]} 3. d4 {[%clk 0:02:45]}  exd4 {[%clk 0:03:00]} 4. Nxd4 {[%clk 0:02:45]}  Nf6 {[%clk 0:03:01]} 5. Nxc6 {[%clk 0:02:46]}  bxc6 {[%clk 0:03:02]} 6. Nd2 {[%clk 0:02:46]}  Bc5 {[%clk 0:02:45]} 7. Nb3 {[%clk 0:02:42]}  Bb6 {[%clk 0:02:38]} 8. e5 {[%clk 0:02:41]}  Qe7 {[%clk 0:02:37]} 9. Qe2 {[%clk 0:02:41]}  Nd5 {[%clk 0:02:36]} 10. c4 {[%clk 0:02:41]}  Ba6 {[%clk 0:02:33]} 11. Bd2 {[%clk 0:02:37]}  O-O {[%clk 0:02:31]} 12. O-O-O {[%clk 0:02:29]}  d6 {[%clk 0:02:21]} 13. exd6 {[%clk 0:02:15]}  Qxe2 {[%clk 0:02:22]} 14. Bxe2 {[%clk 0:02:14]}  cxd6 {[%clk 0:02:22]} 15. Bf1 {[%clk 0:01:57]}  Nf6 {[%clk 0:02:19]} 16. f3 {[%clk 0:01:32]}  h6 {[%clk 0:02:15]} 17. Bf4 {[%clk 0:01:29]}  d5 {[%clk 0:02:12]} 18. c5 {[%clk 0:01:27]}  Bxf1 {[%clk 0:02:12]} 19. Rhxf1 {[%clk 0:01:28]}  Bd8 {[%clk 0:02:11]} 20. Nd4 {[%clk 0:01:29]}  Rc8 {[%clk 0:02:10]} 21. Bd6 {[%clk 0:01:28]}  Re8 {[%clk 0:02:10]} 22. Rfe1 {[%clk 0:01:28]}  Ba5 {[%clk 0:02:05]} 23. Re5 {[%clk 0:01:25]}  Rxe5 {[%clk 0:02:01]} 24. Bxe5 {[%clk 0:01:25]}  Nd7 {[%clk 0:02:00]} 25. Bd6 {[%clk 0:01:25]}  Bb4 {[%clk 0:01:59]} 26. Nb3 {[%clk 0:01:23]}  a5 {[%clk 0:01:11]} 27. a3 {[%clk 0:01:13]}  a4 {[%clk 0:01:12]} 28. axb4 {[%clk 0:01:13]}  axb3 {[%clk 0:01:12]} 29. Rd3 {[%clk 0:01:11]}  Re8 {[%clk 0:01:11]} 30. Rxb3 {[%clk 0:01:10]}  Re2 {[%clk 0:01:11]} 31. b5 {[%clk 0:01:08]}  cxb5 {[%clk 0:01:11]} 32. c6 {[%clk 0:01:06]}  Nb6 {[%clk 0:01:08]} 33. Rxb5 {[%clk 0:01:05]}  Nc4 {[%clk 0:01:08]} 34. Bc5 {[%clk 0:00:56]}  Re6 {[%clk 0:01:00]} 35. c7 {[%clk 0:00:54]}  Rc6 {[%clk 0:00:52]} 36. Rb8+ {[%clk 0:00:54]} 1-0


[Site "https://www.chess.com"]

[Event "Titled Tuesday Blitz May 23 Early 2023"]
[White "robertoalejandro10"]
[Black "Ovezdurdyyeva, Jemal"]
[BlackFideId "14001888"]
[WhiteElo "2556"]
[BlackElo "2043"]
[Result "1-0"]
[Round "04"]
[TimeControl "180+2"]
[Date "2023.05.23"]
[WhiteClock "0:01:28"]
[BlackClock "0:00:12"]

1. Nf3 {[%clk 0:03:00]}  Nf6 {[%clk 0:02:59]} 2. c4 {[%clk 0:03:00]}  d6 {[%clk 0:02:59]} 3. g3 {[%clk 0:03:01]}  b6 {[%clk 0:02:57]} 4. Bg2 {[%clk 0:03:00]}  Bb7 {[%clk 0:02:58]} 5. O-O {[%clk 0:03:01]}  g6 {[%clk 0:02:58]} 6. Nc3 {[%clk 0:03:01]}  Bg7 {[%clk 0:02:58]} 7. b3 {[%clk 0:03:02]}  O-O {[%clk 0:02:58]} 8. Bb2 {[%clk 0:03:02]}  c5 {[%clk 0:02:59]} 9. d4 {[%clk 0:03:03]}  cxd4 {[%clk 0:02:58]} 10. Qxd4 {[%clk 0:03:03]}  Nc6 {[%clk 0:02:58]} 11. Qd2 {[%clk 0:03:02]}  Qc7 {[%clk 0:02:50]} 12. Rac1 {[%clk 0:02:57]}  e6 {[%clk 0:02:49]} 13. Nb5 {[%clk 0:02:54]}  Qd7 {[%clk 0:02:49]} 14. Qxd6 {[%clk 0:02:53]}  Rfd8 {[%clk 0:02:41]} 15. Rfd1 {[%clk 0:02:39]}  a6 {[%clk 0:02:34]} 16. Bxf6 {[%clk 0:02:33]}  Qxd6 {[%clk 0:02:32]} 17. Nxd6 {[%clk 0:02:32]}  Rxd6 {[%clk 0:02:28]} 18. Rxd6 {[%clk 0:02:32]}  Bxf6 {[%clk 0:02:28]} 19. Rcd1 {[%clk 0:02:17]}  Nb4 {[%clk 0:02:24]} 20. Rd7 {[%clk 0:02:11]}  Be4 {[%clk 0:02:18]} 21. h4 {[%clk 0:01:55]}  Nxa2 {[%clk 0:02:17]} 22. Ng5 {[%clk 0:01:55]}  Bxg2 {[%clk 0:02:08]} 23. Kxg2 {[%clk 0:01:56]}  Nc3 {[%clk 0:02:07]} 24. R1d2 {[%clk 0:01:52]}  Rf8 {[%clk 0:01:40]} 25. Rb7 {[%clk 0:01:49]}  h6 {[%clk 0:01:38]} 26. Nf3 {[%clk 0:01:44]}  b5 {[%clk 0:01:38]} 27. cxb5 {[%clk 0:01:40]}  axb5 {[%clk 0:01:36]} 28. Rdd7 {[%clk 0:01:39]}  e5 {[%clk 0:01:08]} 29. e3 {[%clk 0:01:30]}  e4 {[%clk 0:00:52]} 30. Nd4 {[%clk 0:01:30]}  Bxd4 {[%clk 0:00:25]} 31. Rxd4 {[%clk 0:01:31]}  Rc8 {[%clk 0:00:12]} 32. Rdd7 {[%clk 0:01:28]} 1-0


[Site "https://www.chess.com"]

[Event "Titled Tuesday Blitz May 23 Early 2023"]
[White "Saya, Ethan"]
[Black "Brueckner, Thomas"]
[WhiteFideId "26095181"]
[BlackFideId "4600452"]
[WhiteElo "2164"]
[BlackElo "2322"]
[Result "1-0"]
[Round "04"]
[TimeControl "180+2"]
[Date "2023.05.23"]
[WhiteClock "0:00:07"]
[BlackClock "0:00:07"]

1. e4 {[%clk 0:03:00]}  e5 {[%clk 0:02:59]} 2. Nf3 {[%clk 0:03:00]}  Nc6 {[%clk 0:02:59]} 3. Bb5 {[%clk 0:02:58]}  a6 {[%clk 0:02:59]} 4. Bxc6 {[%clk 0:02:53]}  dxc6 {[%clk 0:02:58]} 5. O-O {[%clk 0:02:52]}  Bd6 {[%clk 0:02:58]} 6. d4 {[%clk 0:02:45]}  exd4 {[%clk 0:02:58]} 7. Qxd4 {[%clk 0:02:44]}  f6 {[%clk 0:02:58]} 8. e5 {[%clk 0:02:20]}  fxe5 {[%clk 0:02:55]} 9. Nxe5 {[%clk 0:02:18]}  Qf6 {[%clk 0:02:47]} 10. Re1 {[%clk 0:02:14]}  Ne7 {[%clk 0:02:47]} 11. Nc3 {[%clk 0:02:03]}  O-O {[%clk 0:02:14]} 12. Nf3 {[%clk 0:02:03]}  Qxd4 {[%clk 0:02:06]} 13. Nxd4 {[%clk 0:02:04]}  Nf5 {[%clk 0:02:06]} 14. Nf3 {[%clk 0:01:48]}  Bb4 {[%clk 0:01:53]} 15. Bd2 {[%clk 0:01:43]}  Nd6 {[%clk 0:01:52]} 16. Ne4 {[%clk 0:01:40]}  Bxd2 {[%clk 0:01:48]} 17. Nfxd2 {[%clk 0:01:39]}  Bf5 {[%clk 0:01:47]} 18. c3 {[%clk 0:01:35]}  Rfe8 {[%clk 0:01:42]} 19. Ng3 {[%clk 0:01:33]}  Bg6 {[%clk 0:01:42]} 20. f3 {[%clk 0:01:31]}  Kf7 {[%clk 0:01:37]} 21. Kf2 {[%clk 0:01:30]}  a5 {[%clk 0:01:33]} 22. Rxe8 {[%clk 0:01:29]}  Rxe8 {[%clk 0:01:32]} 23. Re1 {[%clk 0:01:30]}  Rd8 {[%clk 0:01:33]} 24. Nde4 {[%clk 0:01:20]}  Nxe4+ {[%clk 0:01:30]} 25. Nxe4 {[%clk 0:01:20]}  h6 {[%clk 0:01:20]} 26. Re2 {[%clk 0:01:16]}  b6 {[%clk 0:01:19]} 27. Ke3 {[%clk 0:01:11]}  Bxe4 {[%clk 0:01:08]} 28. Kxe4 {[%clk 0:01:10]}  Rd1 {[%clk 0:01:02]} 29. f4 {[%clk 0:01:02]}  Ra1 {[%clk 0:00:56]} 30. a3 {[%clk 0:01:02]}  Rd1 {[%clk 0:00:54]} 31. Kf3 {[%clk 0:00:59]}  Rd3+ {[%clk 0:00:53]} 32. Kf2 {[%clk 0:00:57]}  Rd5 {[%clk 0:00:51]} 33. g3 {[%clk 0:00:50]}  a4 {[%clk 0:00:50]} 34. Ke3 {[%clk 0:00:49]}  b5 {[%clk 0:00:48]} 35. Rd2 {[%clk 0:00:49]}  Ke6 {[%clk 0:00:28]} 36. g4 {[%clk 0:00:38]}  c5 {[%clk 0:00:22]} 37. h4 {[%clk 0:00:29]}  c6 {[%clk 0:00:22]} 38. Re2 {[%clk 0:00:21]}  Kf6 {[%clk 0:00:20]} 39. Kf3 {[%clk 0:00:20]}  Kf7 {[%clk 0:00:19]} 40. Ke4 {[%clk 0:00:19]}  Rd8 {[%clk 0:00:19]} 41. f5 {[%clk 0:00:18]}  Re8+ {[%clk 0:00:17]} 42. Kf3 {[%clk 0:00:18]}  Rd8 {[%clk 0:00:17]} 43. Kf4 {[%clk 0:00:18]}  Rd6 {[%clk 0:00:17]} 44. g5 {[%clk 0:00:18]}  hxg5+ {[%clk 0:00:17]} 45. hxg5 {[%clk 0:00:19]}  b4 {[%clk 0:00:16]} 46. Re5 {[%clk 0:00:14]}  bxc3 {[%clk 0:00:13]} 47. bxc3 {[%clk 0:00:14]}  Rd5 {[%clk 0:00:13]} 48. Rxd5 {[%clk 0:00:13]}  cxd5 {[%clk 0:00:13]} 49. Ke5 {[%clk 0:00:13]}  d4 {[%clk 0:00:12]} 50. cxd4 {[%clk 0:00:13]}  c4 {[%clk 0:00:13]} 51. Ke4 {[%clk 0:00:13]}  Ke7 {[%clk 0:00:09]} 52. d5 {[%clk 0:00:13]}  Kd6 {[%clk 0:00:08]} 53. Kd4 {[%clk 0:00:14]}  c3 {[%clk 0:00:08]} 54. Kxc3 {[%clk 0:00:14]}  Kxd5 {[%clk 0:00:08]} 55. Kb4 {[%clk 0:00:15]}  Ke5 {[%clk 0:00:08]} 56. f6 {[%clk 0:00:15]}  gxf6 {[%clk 0:00:07]} 57. g6 {[%clk 0:00:07]}  Ke6 {[%clk 0:00:07]} 58. Kxa4 {[%clk 0:00:07]}  f5 {[%clk 0:00:07]} 59. Kb3 {[%clk 0:00:06]}  f4 {[%clk 0:00:08]} 60. Kc3 {[%clk 0:00:06]}  f3 {[%clk 0:00:08]} 61. Kd3 {[%clk 0:00:07]}  f2 {[%clk 0:00:08]} 62. Ke2 {[%clk 0:00:07]}  f1=Q+ {[%clk 0:00:07]} 63. Kxf1 {[%clk 0:00:07]} 1-0


[Site "https://www.chess.com"]

[Event "Titled Tuesday Blitz May 23 Early 2023"]
[White "Blokhin, Sofia"]
[Black "Guerra Tulcan, Lenin"]
[WhiteFideId "4508190"]
[BlackFideId "3601382"]
[WhiteElo "1994"]
[BlackElo "2368"]
[Result "0-1"]
[Round "04"]
[TimeControl "180+2"]
[Date "2023.05.23"]
[WhiteClock "0:00:01"]
[BlackClock "0:00:52"]

1. e4 {[%clk 0:03:00]}  c5 {[%clk 0:02:57]} 2. Nf3 {[%clk 0:02:59]}  e6 {[%clk 0:02:57]} 3. d4 {[%clk 0:02:59]}  cxd4 {[%clk 0:02:57]} 4. Nxd4 {[%clk 0:02:59]}  Nc6 {[%clk 0:02:57]} 5. a3 {[%clk 0:02:51]}  Qc7 {[%clk 0:02:56]} 6. Nc3 {[%clk 0:02:48]}  a6 {[%clk 0:02:56]} 7. Be3 {[%clk 0:02:46]}  b5 {[%clk 0:02:55]} 8. Qd2 {[%clk 0:02:42]}  Bb7 {[%clk 0:02:54]} 9. f3 {[%clk 0:02:41]}  Nf6 {[%clk 0:02:54]} 10. g4 {[%clk 0:02:35]}  d5 {[%clk 0:02:47]} 11. g5 {[%clk 0:02:31]}  Nxd4 {[%clk 0:02:42]} 12. Qxd4 {[%clk 0:02:18]}  e5 {[%clk 0:02:38]} 13. Qb6 {[%clk 0:02:08]}  Qxb6 {[%clk 0:02:38]} 14. Bxb6 {[%clk 0:02:06]}  Nd7 {[%clk 0:02:37]} 15. Bf2 {[%clk 0:01:59]}  d4 {[%clk 0:02:32]} 16. Ne2 {[%clk 0:01:46]}  Be7 {[%clk 0:02:28]} 17. h4 {[%clk 0:01:44]}  h6 {[%clk 0:02:27]} 18. g6 {[%clk 0:01:40]}  fxg6 {[%clk 0:02:25]} 19. Bh3 {[%clk 0:01:36]}  Nc5 {[%clk 0:02:21]} 20. Bg3 {[%clk 0:01:26]}  O-O {[%clk 0:02:19]} 21. Bxe5 {[%clk 0:01:20]}  Rxf3 {[%clk 0:02:18]} 22. Bxd4 {[%clk 0:01:02]}  Nxe4 {[%clk 0:02:13]} 23. Be6+ {[%clk 0:00:58]}  Kh7 {[%clk 0:02:12]} 24. O-O-O {[%clk 0:00:50]}  Nf2 {[%clk 0:02:08]} 25. Bxf2 {[%clk 0:00:42]}  Rxf2 {[%clk 0:02:09]} 26. Nd4 {[%clk 0:00:40]}  Bxh1 {[%clk 0:02:07]} 27. Rxh1 {[%clk 0:00:39]}  Bc5 {[%clk 0:02:06]} 28. Nb3 {[%clk 0:00:35]}  Be3+ {[%clk 0:02:05]} 29. Kb1 {[%clk 0:00:35]}  Re8 {[%clk 0:02:04]} 30. Bd5 {[%clk 0:00:31]}  Bd2 {[%clk 0:01:58]} 31. h5 {[%clk 0:00:27]}  gxh5 {[%clk 0:01:50]} 32. Rxh5 {[%clk 0:00:24]}  Re1+ {[%clk 0:01:48]} 33. Ka2 {[%clk 0:00:23]}  Bg5 {[%clk 0:01:49]} 34. Nc5 {[%clk 0:00:18]}  g6 {[%clk 0:01:44]} 35. Rh3 {[%clk 0:00:16]}  Rxc2 {[%clk 0:01:43]} 36. Ne4 {[%clk 0:00:14]}  Rxe4 {[%clk 0:01:28]} 37. Bxe4 {[%clk 0:00:14]}  Re2 {[%clk 0:01:27]} 38. Bb7 {[%clk 0:00:13]}  Bf6 {[%clk 0:01:24]} 39. Rb3 {[%clk 0:00:13]}  a5 {[%clk 0:01:20]} 40. Rxb5 {[%clk 0:00:12]}  h5 {[%clk 0:01:19]} 41. Bf3 {[%clk 0:00:09]}  Rf2 {[%clk 0:01:17]} 42. Bxh5 {[%clk 0:00:08]}  gxh5 {[%clk 0:01:16]} 43. Rxh5+ {[%clk 0:00:09]}  Kg6 {[%clk 0:01:16]} 44. Rb5 {[%clk 0:00:07]}  Kf7 {[%clk 0:01:11]} 45. Rb6 {[%clk 0:00:07]}  Bd4 {[%clk 0:01:05]} 46. Rb3 {[%clk 0:00:06]}  Ke6 {[%clk 0:01:02]} 47. Rb5 {[%clk 0:00:06]}  Kd6 {[%clk 0:01:00]} 48. a4 {[%clk 0:00:06]}  Kc6 {[%clk 0:00:56]} 49. Rb3 {[%clk 0:00:05]}  Kc5 {[%clk 0:00:54]} 50. Rb5+ {[%clk 0:00:06]}  Kc4 {[%clk 0:00:54]} 51. Rxa5 {[%clk 0:00:06]}  Rxb2+ {[%clk 0:00:52]} 52. Ka3 {[%clk 0:00:06]}  Rb1 {[%clk 0:00:52]} 53. Ka2 {[%clk 0:00:01]}  Ra1# {[%clk 0:00:52]} 0-1


[Site "https://www.chess.com"]

[Event "Titled Tuesday Blitz May 23 Early 2023"]
[White "Mladek, Richard"]
[Black "Kovacsy, Barnabas"]
[WhiteFideId "386588"]
[BlackFideId "769290"]
[WhiteElo "2332"]
[BlackElo "2130"]
[Result "1-0"]
[Round "04"]
[TimeControl "180+2"]
[Date "2023.05.23"]
[WhiteClock "0:00:12"]
[BlackClock "0:00:08"]

1. c4 {[%clk 0:03:00]}  Nf6 {[%clk 0:02:58]} 2. Nc3 {[%clk 0:03:00]}  d5 {[%clk 0:02:58]} 3. cxd5 {[%clk 0:03:00]}  Nxd5 {[%clk 0:02:59]} 4. e4 {[%clk 0:03:00]}  Nxc3 {[%clk 0:02:59]} 5. bxc3 {[%clk 0:03:00]}  g6 {[%clk 0:02:58]} 6. d4 {[%clk 0:02:59]}  Bg7 {[%clk 0:02:59]} 7. Nf3 {[%clk 0:03:00]}  c5 {[%clk 0:02:59]} 8. h3 {[%clk 0:02:59]}  Nc6 {[%clk 0:02:48]} 9. Be3 {[%clk 0:02:59]}  Qa5 {[%clk 0:02:40]} 10. Bd2 {[%clk 0:02:59]}  O-O {[%clk 0:02:30]} 11. Be2 {[%clk 0:02:58]}  Rd8 {[%clk 0:02:20]} 12. O-O {[%clk 0:02:56]}  cxd4 {[%clk 0:02:14]} 13. cxd4 {[%clk 0:02:56]}  Qb6 {[%clk 0:02:05]} 14. d5 {[%clk 0:02:56]}  Nd4 {[%clk 0:02:01]} 15. Nxd4 {[%clk 0:02:50]}  Qxd4 {[%clk 0:01:58]} 16. Rb1 {[%clk 0:02:28]}  Qxe4 {[%clk 0:01:51]} 17. Bf3 {[%clk 0:02:28]}  Qd4 {[%clk 0:01:19]} 18. Qe2 {[%clk 0:02:17]}  e6 {[%clk 0:01:13]} 19. Ba5 {[%clk 0:02:07]}  b6 {[%clk 0:00:59]} 20. Rfd1 {[%clk 0:01:45]}  Qa4 {[%clk 0:00:54]} 21. dxe6 {[%clk 0:01:44]}  Bxe6 {[%clk 0:00:53]} 22. Bxa8 {[%clk 0:01:42]}  Rxa8 {[%clk 0:00:52]} 23. Be1 {[%clk 0:01:34]}  Qxa2 {[%clk 0:00:49]} 24. Qf3 {[%clk 0:01:22]}  Re8 {[%clk 0:00:41]} 25. Bc3 {[%clk 0:01:20]}  Qa3 {[%clk 0:00:31]} 26. Rd3 {[%clk 0:01:01]}  Bf5 {[%clk 0:00:22]} 27. Qc6 {[%clk 0:00:53]}  Rc8 {[%clk 0:00:22]} 28. Qxc8+ {[%clk 0:00:52]}  Bxc8 {[%clk 0:00:22]} 29. Rd8+ {[%clk 0:00:53]}  Bf8 {[%clk 0:00:22]} 30. Bb4 {[%clk 0:00:53]}  Qa2 {[%clk 0:00:19]} 31. Rc1 {[%clk 0:00:44]}  Be6 {[%clk 0:00:17]} 32. Bxf8 {[%clk 0:00:40]}  f5 {[%clk 0:00:16]} 33. Bh6+ {[%clk 0:00:19]}  Kf7 {[%clk 0:00:16]} 34. Rc7+ {[%clk 0:00:19]}  Kf6 {[%clk 0:00:17]} 35. Bf4 {[%clk 0:00:16]}  g5 {[%clk 0:00:15]} 36. Rf8+ {[%clk 0:00:13]}  Kg6 {[%clk 0:00:16]} 37. Be5 {[%clk 0:00:14]}  f4 {[%clk 0:00:15]} 38. Rg7+ {[%clk 0:00:12]}  Kh5 {[%clk 0:00:08]} 39. Rxh7+ {[%clk 0:00:12]} 1-0


[Site "https://www.chess.com"]